bitfinex/quotes_ETHUSD_20250813
["timestamp","ask_amount","ask_price","bid_price","bid_amount"]
[1755071238785,0.9667,4623.3,4622.2,8.9404]
[1755071239087,0.108,4622.7,4622.2,8.9404]
[1755071239284,0.108,4622.7,4622.3,0.4684]
[1755071239786,0.108,4622.7,4622.2,3.398]
[1755071240190,0.108,4622.7,4622.2,3.8664]
[1755071240389,0.108,4622.7,4622.2,3.398]
[1755071240692,0.108,4622.7,4622.3,0.4684]
[1755071241188,0.108,4622.7,4622.2,3.398]
[1755071241569,0.108,4622.7,4622.3,0.9337]
[1755071242072,0.108,4622.7,4622.4,0.4684]
[1755071242661,0.717,4623.4,4622.5,0.4684]
[1755071242867,0.108,4623.2,4622.6,0.108]
[1755071243174,14.5,4623.7,4622.6,0.108]
[1755071243486,0.108,4623.5,4622.6,0.108]
[1755071244063,0.5998,4623.5,4622.6,0.108]
[1755071244266,14.5,4623.4,4622.6,0.108]
[1755071245406,14.5,4623.4,4623.3,5.183]
[1755071245709,15.4667,4623.4,4623.3,8.473]
[1755071246268,15.4667,4623.4,4623.3,8.472]
[1755071247998,14.9918,4623.4,4623.3,8.472]
[1755071248385,15.4667,4623.4,4623.3,8.472]
[1755071250539,15.4667,4623.4,4623.3,8.502]
[1755071251389,15.4667,4623.4,4623.3,5.213]
[1755071251591,15.4667,4623.4,4623.3,8.501]
[1755071252626,14.5,4623.4,4623.3,8.501]
[1755071252842,14.608,4623.4,4623.3,8.501]
[1755071253811,14.608,4623.4,4623.3,5.213]
[1755071254015,15.5739,4623.4,4623.3,8.501]
[1755071254893,16.1239,4623.4,4623.3,5.213]
[1755071255126,16.1239,4623.4,4623.3,8.504]
[1755071256210,15.158,4623.4,4623.3,8.504]
[1755071256513,14.608,4623.4,4623.3,8.504]
[1755071256737,15.5739,4623.4,4623.3,8.504]
[1755071260326,16.1239,4623.4,4623.3,5.213]
[1755071260533,16.79152302,4623.4,4623.3,8.503]
[1755071260870,23.96150012,4623.4,4623.3,5.213]
[1755071261053,23.96150012,4623.4,4623.3,8.503]
[1755071262862,23.96139785,4623.4,4623.3,8.503]
[1755071263026,23.96139785,4623.4,4623.3,5.213]
[1755071263228,23.96139785,4623.4,4623.3,8.503]
[1755071263422,23.96139785,4623.4,4623.3,5.213]
[1755071263649,0.55,4623.3,4623.2,2.695]
[1755071263924,44.67412822,4623.3,4622.3,0.001]
[1755071264141,0.55,4622.5,4622.3,0.001]
[1755071264340,0.658,4622.4,4622.3,0.001]
[1755071264541,16.32586013,4622.4,4622.3,0.001]
[1755071264758,23.96139785,4622.4,4622.3,0.001]
[1755071265275,23.96139785,4622.4,4622.3,1.799]
[1755071265576,23.96139785,4622.4,4622.3,6.982]
[1755071266388,22.42151077,4622.4,4622.3,6.982]
[1755071266589,22.52951077,4622.4,4622.3,6.982]
[1755071266789,21.67,4622.4,4622.3,6.982]
[1755071266975,21.778,4622.4,4622.3,6.982]
[1755071267593,22.328,4622.4,4622.3,6.982]
[1755071270588,23.2939,4622.4,4622.3,6.982]
[1755071270947,23.49519937,4622.4,4622.3,6.982]
[1755071271560,23.49519937,4622.4,4622.3,8.474]
[1755071273088,23.02759937,4622.4,4622.3,8.474]
[1755071277399,23.49519937,4622.4,4622.3,5.184]
[1755071277564,23.49519937,4622.4,4622.3,8.473]
[1755071278188,23.49519937,4622.4,4622.3,8.472]
[1755071278678,23.2939,4622.4,4622.3,8.472]
[1755071278872,25.02382482,4622.4,4622.3,8.472]
[1755071279197,23.49520104,4622.4,4622.3,8.472]
[1755071279403,23.49520608,4622.4,4622.3,8.472]
[1755071280308,23.2939,4622.4,4622.3,8.472]
[1755071280508,23.4952383,4622.4,4622.3,8.472]
[1755071280910,22.52936774,4622.4,4622.3,8.472]
[1755071281090,24.73016774,4622.4,4622.3,5.184]
[1755071281288,25.1941299,4622.4,4622.3,8.471]
[1755071281525,1.847,4622.1,4621.9,0.001]
[1755071281831,37.16773037,4621.5,4621.3,0.001]
[1755071282115,15.35936774,4621.5,4621.4,11.171]
[1755071282482,1.847,4621.4,4620.9,0.001]
[1755071282687,1.847,4621.2,4621.1,8.476]
[1755071282886,19.29531367,4621.2,4621.1,8.476]
[1755071283182,34.36704457,4621.2,4621.1,8.476]
[1755071283486,33.90331367,4621.2,4620.9,0.001]
[1755071283688,2.04836774,4621.1,4620.9,0.001]
[1755071283907,19.12987509,4621.1,4620.9,0.001]
[1755071284209,33.62987509,4621.1,4620.9,0.001]
[1755071284780,17.45216774,4621.1,4621.0,2.58508541]
[1755071285178,0.55,4621.0,4620.1,0.001]
[1755071285384,0.55,4620.5,4620.2,5.186]
[1755071285583,1.0014,4620.4,4620.3,3.292]
[1755071285825,0.658,4620.3,4620.2,5.186]
[1755071286116,0.658,4620.3,4620.2,8.478]
[1755071286485,22.328,4620.3,4620.2,8.478]
[1755071287898,22.228,4620.3,4620.2,8.478]
[1755071288804,22.33889455,4620.3,4620.2,5.186]
[1755071289004,23.44368658,4620.3,4620.2,8.478]
[1755071289935,22.99129629,4620.3,4620.2,8.478]
[1755071290139,22.99129629,4620.3,4620.2,8.477]
[1755071290800,22.99129629,4620.3,4620.2,5.186]
[1755071291124,22.99129629,4620.3,4620.2,8.477]
[1755071292411,22.53989629,4620.3,4620.2,8.477]
[1755071292607,22.42900174,4620.3,4620.2,8.477]
[1755071292931,22.42900174,4620.3,4620.2,8.9356]
[1755071293092,22.42903168,4620.3,4620.2,8.477]
[1755071293711,22.98988294,4620.3,4620.2,8.477]
[1755071294118,23.44228294,4620.3,4620.2,5.186]
[1755071294338,23.44228294,4620.3,4620.2,8.477]
[1755071294553,23.44228294,4620.3,4620.2,5.186]
[1755071294861,23.44228294,4620.3,4620.2,8.476]
[1755071295753,22.98988294,4620.3,4620.2,8.476]
[1755071297161,22.53848294,4620.3,4620.2,8.476]
[1755071297362,23.44228294,4620.3,4620.2,5.186]
[1755071297973,23.44228294,4620.3,4620.2,8.475]
[1755071299368,23.44220577,4620.3,4620.2,8.475]
[1755071299565,22.98980577,4620.3,4620.2,8.475]
[1755071299732,22.53840577,4620.3,4620.2,8.475]
[1755071299930,22.53842842,4620.3,4620.2,8.475]
[1755071300568,22.53842842,4620.3,4620.2,5.186]
[1755071300764,23.44222842,4620.3,4620.2,8.474]
[1755071300967,25.20233879,4620.3,4620.2,5.187]
[1755071301135,7.719,4619.7,4618.3,0.4586]
[1755071301336,9.78803652,4619.7,4619.6,0.975]
[1755071301640,10.691839,4619.7,4619.6,0.975]
[1755071301859,25.191839,4619.7,4619.6,0.975]
[1755071304793,22.991039,4619.7,4619.6,0.975]
[1755071304999,24.288039,4619.7,4619.6,0.975]
[1755071305299,24.288039,4619.7,4619.6,0.001]
[1755071305451,25.191839,4619.7,4619.6,5.189]
[1755071305652,1.847,4619.0,4618.8,0.001]
[1755071305852,0.55,4618.8,4618.4,2.697]
[1755071306048,0.55,4618.6,4618.5,8.477]
[1755071306282,15.25097964,4618.6,4618.5,8.477]
[1755071306478,15.822039,4618.6,4618.5,8.477]
[1755071306680,15.822039,4618.6,4618.5,8.9356]
[1755071306881,15.35897964,4618.6,4618.5,9.4337]
[1755071307086,14.70097964,4618.6,4618.5,9.4337]
[1755071307382,14.80897964,4618.6,4618.5,9.4337]
[1755071308351,14.608,4618.6,4618.5,9.4337]
[1755071308582,14.80917452,4618.6,4618.5,9.4337]
[1755071308993,14.96849677,4618.6,4618.5,9.4337]
[1755071309160,14.9684978,4618.6,4618.5,9.4337]
[1755071310208,0.4684978,4618.6,4618.5,9.4337]
[1755071310406,0.108,4618.6,4618.5,10.09408305]
[1755071312819,0.108,4618.6,4618.5,9.4337]
[1755071314099,0.108,4618.7,4618.5,9.4337]
[1755071314293,0.108,4618.7,4618.6,0.9553]
[1755071315316,0.108,4618.7,4618.6,3.6533]
[1755071315998,0.108,4618.7,4618.6,6.9423]
[1755071316620,0.108,4618.7,4618.6,6.4464]
[1755071317357,0.108,4618.7,4618.6,5.987]
[1755071317644,0.658,4618.7,4618.6,5.987]
[1755071318516,0.658,4618.7,4618.6,6.4464]
[1755071319114,0.658,4618.7,4618.6,5.987]
[1755071321047,1.1118,4618.7,4618.6,5.987]
[1755071321249,0.658,4618.7,4618.6,5.987]
[1755071321458,0.78938294,4618.7,4618.6,5.987]
[1755071322655,0.658,4618.7,4618.6,5.987]
[1755071323626,0.658,4618.7,4618.6,5.986]
[1755071327241,0.658,4618.7,4618.6,6.4454]
[1755071328146,0.108,4618.7,4618.6,6.4454]
[1755071328384,0.108,4618.7,4618.6,6.9413]
[1755071328951,0.108,4618.7,4618.6,8.15423]
[1755071330045,0.108,4618.7,4618.6,6.9413]
[1755071330245,7.169,4619.2,4618.6,4.2433]
[1755071330444,0.108,4618.7,4618.6,3.288]
[1755071331052,0.108,4618.7,4618.6,4.2433]
[1755071331669,0.108,4619.2,4618.6,4.3513]
[1755071331909,0.108,4619.2,4618.7,1.37973]
[1755071332101,0.002,4618.8,4618.7,1.37973]
[1755071332302,0.002,4618.8,4618.7,4.2433]
[1755071335329,0.002,4618.8,4618.7,12.1293]
[1755071337226,0.002,4618.8,4618.7,8.8403]
[1755071337404,0.002,4618.8,4618.7,12.1303]
[1755071338619,0.002,4618.8,4618.7,12.2383]
[1755071339323,0.002,4618.8,4618.7,13.47303]
[1755071341238,0.002,4618.8,4618.7,10.77503]
[1755071341836,0.002,4618.8,4618.7,10.88303]
[1755071342040,0.002,4618.8,4618.7,5.69603]
[1755071342241,0.002,4618.8,4618.7,4.4613]
[1755071344145,0.002,4618.8,4618.7,5.0113]
[1755071345317,0.002,4618.8,4618.7,12.8953]
[1755071345917,0.002,4618.8,4618.7,12.3295]
[1755071348079,0.002,4618.8,4618.7,9.6315]
[1755071348368,0.002,4618.8,4618.7,10.59475]
[1755071349171,0.002,4618.8,4618.7,10.11265]
[1755071349474,0.002,4618.8,4618.7,6.82565]
[1755071349638,0.002,4618.8,4618.7,10.08395]
[1755071350878,0.002,4618.8,4618.7,9.65325]
[1755071351438,0.002,4618.8,4618.7,1.60995]
[1755071351676,0.002,4618.8,4618.7,3.9337]
[1755071352039,0.002,4618.8,4618.7,3.503]
[1755071352541,0.002,4618.8,4618.7,0.216]
[1755071352760,0.002,4618.8,4618.7,4.4158]
[1755071353754,0.002,4618.8,4618.7,3.9337]
[1755071353960,0.002,4618.8,4618.7,4.32727]
[1755071354153,0.002,4618.8,4618.7,3.89657]
[1755071354753,0.002,4618.8,4618.7,0.60957]
[1755071354957,0.9143,4618.8,4618.7,3.395]
[1755071355364,0.4597,4618.8,4618.7,11.278]
[1755071355566,0.002,4618.8,4618.7,11.278]
[1755071356291,0.9143,4618.8,4618.7,11.278]
[1755071356958,0.4597,4618.8,4618.7,8.581]
[1755071357354,0.9143,4618.8,4618.7,8.581]
[1755071359704,0.9143,4618.8,4618.7,0.108]
[1755071360000,0.9143,4618.8,4618.7,3.287]
[1755071360165,1.0223,4618.8,4618.7,3.287]
[1755071362197,1.0223,4618.8,4618.6,0.001]
[1755071362393,0.11,4618.8,4618.7,3.287]
[1755071362989,0.5677,4618.8,4618.7,3.287]
[1755071363203,1.0223,4618.8,4618.7,3.287]
[1755071363825,1.0223,4618.8,4618.6,0.001]
[1755071364024,1.0223,4618.8,4618.7,3.288]
[1755071364594,1.0223,4618.8,4618.7,3.287]
[1755071364823,1.0223,4618.8,4618.6,0.001]
[1755071365035,1.0223,4618.8,4618.7,0.954]
[1755071365036,0.11,4618.8,4618.7,0.954]
[1755071365324,0.11,4618.8,4618.7,8.838]
[1755071365695,1.0223,4618.8,4618.7,8.838]
[1755071365895,15.5223,4618.8,4618.7,8.838]
[1755071366631,15.5223,4618.8,4618.7,7.884]
[1755071366794,16.23036702,4618.8,4618.7,11.172]
[1755071371952,14.61,4618.8,4618.7,11.172]
[1755071372121,14.502,4618.8,4618.7,11.172]
[1755071372315,14.61,4618.8,4618.7,11.172]
[1755071372921,0.11,4618.8,4618.7,11.172]
[1755071373622,0.002,4618.8,4618.7,8.9281]
[1755071373932,0.002,4618.8,4618.7,8.475]
[1755071374750,0.002,4618.8,4618.7,3.288]
[1755071375450,0.002,4618.8,4618.7,11.174]
[1755071375816,0.002,4618.8,4618.7,7.886]
[1755071376022,0.8846,4618.8,4618.7,11.174]
[1755071376418,0.8846,4618.8,4618.7,7.886]
[1755071376615,1.4346,4618.8,4618.7,7.886]
[1755071376845,1.58886,4618.8,4618.7,11.174]
[1755071377248,16.08886,4618.8,4618.7,11.174]
[1755071377458,16.08886,4618.8,4618.7,11.175]
[1755071379120,16.08886,4618.8,4618.7,7.886]
[1755071379320,16.08886,4618.8,4618.7,11.174]
[1755071379945,16.08886,4618.8,4618.7,7.886]
[1755071380152,16.08886,4618.8,4618.7,11.174]
[1755071381958,16.08886,4618.8,4618.7,7.886]
[1755071382146,16.08886,4618.8,4618.7,11.174]
[1755071382755,23.25786,4618.8,4618.7,11.174]
[1755071384742,23.25786,4618.8,4618.7,7.886]
[1755071384949,23.25786,4618.8,4618.7,11.174]
[1755071385577,23.25786,4618.8,4618.7,7.886]
[1755071385735,23.25786,4618.8,4618.7,11.174]
[1755071385934,23.25786,4618.8,4618.7,7.886]
[1755071386135,23.45928751,4618.8,4618.7,11.174]
[1755071387357,23.45928751,4618.8,4618.7,7.886]
[1755071387766,23.45928751,4618.8,4618.7,11.174]
[1755071389173,23.45937272,4618.8,4618.7,11.174]
[1755071389674,23.92366408,4618.8,4618.7,11.174]
[1755071390179,25.22066408,4618.8,4618.7,7.886]
[1755071390340,25.22066408,4618.8,4618.7,11.174]
[1755071391168,25.22066408,4618.8,4618.7,7.886]
[1755071391376,25.22066408,4618.8,4618.7,11.174]
[1755071392314,25.22074437,4618.8,4618.7,11.174]
[1755071393001,25.22079314,4618.8,4618.7,11.174]
[1755071393212,25.80054123,4618.8,4618.7,11.174]
[1755071393384,25.80191557,4618.8,4618.7,11.174]
[1755071393581,25.80191557,4618.8,4618.7,7.886]
[1755071393785,25.22113013,4618.8,4618.7,11.175]
[1755071394681,25.22109509,4618.8,4618.7,11.175]
[1755071397017,25.22109509,4618.8,4618.7,8.477]
[1755071397597,25.99288125,4618.8,4618.7,5.188]
[1755071398119,25.99288125,4618.8,4618.7,8.477]
[1755071398307,25.22109509,4618.8,4618.7,8.477]
[1755071398506,25.99288125,4618.8,4618.7,5.188]
[1755071398823,25.22109509,4618.8,4618.7,8.477]
[1755071399732,25.22109509,4618.8,4618.7,5.188]
[1755071400034,25.22109509,4618.8,4617.7,0.001]
[1755071400035,1.847,4618.3,4617.7,0.001]
[1755071400206,19.11508598,4618.3,4618.2,8.48]
[1755071400405,20.51771433,4618.3,4618.2,8.48]
[1755071400600,34.24360331,4618.3,4618.2,8.48]
[1755071401133,34.04199657,4618.3,4618.2,5.19]
[1755071401313,35.01746912,4618.3,4618.2,5.19]
[1755071401633,34.2433581,4618.3,4618.2,5.19]
[1755071401838,34.24335948,4618.3,4618.2,5.19]
[1755071402140,34.24335948,4618.3,4618.2,8.479]
[1755071403034,33.77325948,4618.3,4618.2,8.479]
[1755071403226,40.94225948,4618.3,4618.2,8.479]
[1755071403732,41.41233222,4618.3,4618.2,5.19]
[1755071403937,41.41233222,4618.3,4618.2,8.479]
[1755071404904,41.41233222,4618.3,4618.2,5.19]
[1755071405235,41.41233222,4618.3,4618.2,8.479]
[1755071405909,41.41233222,4618.3,4618.2,5.19]
[1755071406540,18.03136822,4617.8,4617.7,0.001]
[1755071406738,25.86633222,4617.8,4617.7,3.29]
[1755071407033,26.91233222,4617.8,4617.7,3.29]
[1755071407256,41.41233222,4617.8,4617.7,3.29]
[1755071407442,41.41233222,4617.8,4617.7,0.001]
[1755071407646,41.41233222,4617.8,4617.7,1.478]
[1755071408016,40.94223222,4617.8,4617.7,0.001]
[1755071408338,1.847,4617.7,4617.6,0.001]
[1755071408545,10.619964,4617.7,4617.6,1.477]
[1755071408750,10.619964,4617.7,4617.6,0.001]
[1755071409054,25.119964,4617.7,4617.3,0.001]
[1755071409351,9.016,4617.7,4617.6,1.476]
[1755071409653,1.955,4617.4,4617.3,0.001]
[1755071409854,17.23603373,4617.4,4617.3,2.38]
[1755071410016,17.23603373,4617.4,4614.7,0.108]
[1755071410017,1.847,4617.3,4616.0,0.4477]
[1755071410222,18.69657325,4617.3,4617.2,0.953]
[1755071410421,19.63457325,4617.3,4617.2,0.953]
[1755071410741,34.13457325,4617.3,4617.2,0.001]
[1755071410940,34.13457325,4617.3,4617.2,2.188]
[1755071411131,34.13457325,4617.3,4616.2,0.4477]
[1755071411456,16.84236822,4616.3,4616.2,0.4477]
[1755071411628,16.84236822,4616.3,4616.2,2.2127]
[1755071411833,31.34236822,4616.3,4616.2,2.2127]
[1755071412217,31.34236822,4616.3,4615.8,0.4926]
[1755071412421,16.73436822,4616.3,4615.9,3.7367]
[1755071412623,0.55,4616.1,4616.0,3.7367]
[1755071412939,15.05,4616.1,4616.0,3.289]
[1755071413123,15.158,4616.1,4616.0,3.289]
[1755071413323,15.31654879,4616.1,4615.8,0.4926]
[1755071413637,0.81654879,4616.1,4615.9,1.9357]
[1755071413830,0.81654879,4616.1,4616.0,0.04]
[1755071414030,0.81654879,4616.1,4616.0,0.4877]
[1755071414357,0.81654879,4616.1,4616.0,0.04]
[1755071414527,15.42420059,4616.1,4616.0,3.313]
[1755071414726,23.26207335,4616.1,4616.0,3.313]
[1755071414922,22.79417335,4616.1,4616.0,3.313]
[1755071415154,22.48554879,4616.1,4616.0,4.2533]
[1755071415327,22.48554879,4616.1,4616.0,9.4443]
[1755071415539,22.48554879,4616.1,4616.0,6.1713]
[1755071415743,22.48554879,4616.1,4616.0,8.9687]
[1755071416128,22.48554879,4616.1,4616.0,9.4613]
[1755071416442,22.48554879,4616.1,4616.0,6.1713]
[1755071417034,22.48554879,4616.1,4616.0,9.4613]
[1755071417430,14.608,4616.1,4616.0,9.4613]
[1755071417654,14.608,4616.1,4616.0,9.7953249]
[1755071419851,14.608,4616.1,4616.0,4.2703]
[1755071420651,14.608,4616.1,4616.0,0.9803]
[1755071420960,14.608,4616.1,4616.0,4.2703]
[1755071422651,0.108,4616.1,4616.0,4.2703]
[1755071423159,14.608,4616.1,4616.0,4.2703]
[1755071423334,7.169,4617.3,4616.0,4.69733]
[1755071423539,0.108,4616.3,4616.1,0.9403]
[1755071423740,0.108,4616.3,4616.2,0.9403]
[1755071425556,0.108,4616.3,4616.2,8.8303]
[1755071429973,0.108,4616.3,4616.2,6.1313]
[1755071430280,0.108,4616.3,4616.2,7.120133]
[1755071430993,0.108,4616.7,4616.2,1.929133]
[1755071431152,0.108,4616.7,4616.3,0.9256]
[1755071431352,7.169,4617.3,4616.4,3.289]
[1755071431555,0.108,4617.2,4616.5,1.0336]
[1755071431754,0.108,4617.2,4616.6,0.9256]
[1755071431954,0.20144143,4618.6,4616.6,0.9256]
[1755071432259,0.108,4617.5,4616.8,0.108]
[1755071432466,0.108,4617.5,4616.9,4.2146]
[1755071432668,0.108,4617.5,4616.9,3.289]
[1755071432868,0.108,4617.5,4617.0,0.9256]
[1755071433275,0.108,4617.5,4616.9,3.289]
[1755071433477,0.108,4617.5,4617.1,0.9256]
[1755071433877,0.108,4617.5,4617.2,0.9256]
[1755071434080,0.108,4617.5,4617.3,0.9256]
[1755071434258,0.108,4617.5,4617.4,3.289]
[1755071434459,0.108,4617.5,4617.4,3.7596]
[1755071434880,0.108,4617.5,4617.4,3.289]
[1755071435388,0.108,4617.5,4617.4,11.178]
[1755071438512,0.108,4617.5,4617.4,11.6486]
[1755071438903,0.108,4617.5,4617.4,8.3596]
[1755071439118,0.108,4617.5,4617.4,11.6486]
[1755071439322,0.108,4617.5,4617.4,11.178]
[1755071443134,0.108,4617.5,4617.4,7.889]
[1755071443446,0.587,4617.5,4617.4,11.178]
[1755071444445,0.108,4617.5,4617.4,11.178]
[1755071445221,0.108,4617.5,4617.4,7.889]
[1755071445440,0.108,4617.5,4617.4,11.177]
[1755071446025,0.108,4617.5,4617.4,11.6476]
[1755071446242,0.108,4617.5,4617.4,12.1026]
[1755071448335,0.108,4617.5,4617.4,8.478]
[1755071448860,0.108,4617.5,4617.4,5.19]
[1755071449026,0.108,4617.5,4617.4,8.478]
[1755071450651,0.108,4617.5,4617.4,5.19]
[1755071450652,1.0301,4617.5,4617.4,5.19]
[1755071450852,1.0301,4617.5,4617.4,8.478]
[1755071451051,15.5301,4617.5,4617.4,8.478]
[1755071451354,23.2491,4617.5,4617.4,5.19]
[1755071451554,23.2491,4617.5,4617.4,8.478]
[1755071453148,21.777,4617.5,4617.4,8.478]
[1755071453455,21.777,4617.5,4617.4,8.9486]
[1755071454575,21.777,4617.5,4617.4,3.7586]
[1755071455344,21.777,4617.5,4617.4,11.6466]
[1755071455864,21.777,4617.5,4617.4,11.176]
[1755071457569,7.277,4617.5,4617.4,7.888]
[1755071457759,7.277,4617.5,4617.4,11.176]
[1755071457940,21.777,4617.5,4617.4,11.176]
[1755071458860,22.256,4617.5,4617.4,11.176]
[1755071459042,22.256,4617.5,4617.4,7.888]
[1755071459248,23.2491,4617.5,4617.4,11.176]
[1755071460060,23.45099957,4617.5,4617.4,11.176]
[1755071460275,23.45099957,4617.5,4617.4,7.888]
[1755071460482,23.45099957,4617.5,4617.4,11.176]
[1755071462051,21.97889957,4617.5,4617.4,11.176]
[1755071462680,23.47039957,4617.5,4617.4,11.176]
[1755071462885,23.93551918,4617.5,4617.4,11.176]
[1755071463541,23.93551918,4617.5,4617.4,7.888]
[1755071463862,23.93551918,4617.5,4617.4,11.176]
[1755071464488,24.51471604,4617.5,4617.4,7.888]
[1755071464689,23.93551918,4617.5,4617.4,11.176]
[1755071464889,23.93551918,4617.5,4617.4,7.888]
[1755071465048,25.23351918,4617.5,4617.4,11.177]
[1755071466398,25.81432542,4617.5,4617.4,11.177]
[1755071467064,25.23351918,4617.5,4617.4,11.177]
[1755071467380,25.23351918,4617.5,4617.4,7.888]
[1755071467381,23.93551918,4617.5,4617.4,7.888]
[1755071467577,25.23351918,4617.5,4616.7,0.001]
[1755071467875,2.73917892,4617.4,4616.8,5.191]
[1755071468077,0.55,4617.2,4616.8,5.191]
[1755071468286,7.169,4617.1,4616.9,3.289]
[1755071468488,0.658,4616.9,4616.8,5.191]
[1755071468787,22.52889957,4616.9,4616.8,8.48]
[1755071468958,39.58639329,4616.9,4616.8,8.48]
[1755071469153,40.52789329,4616.9,4616.8,8.48]
[1755071469784,40.52789329,4616.9,4616.8,5.191]
[1755071469987,40.52789329,4616.9,4616.8,8.48]
[1755071470377,40.32599372,4616.9,4616.8,8.48]
[1755071470687,40.52744802,4616.9,4616.8,8.48]
[1755071470992,23.40157979,4616.9,4616.8,8.48]
[1755071471198,39.58594801,4616.9,4616.8,8.48]
[1755071471891,39.1208284,4616.9,4616.8,8.48]
[1755071472092,22.93646018,4616.9,4616.8,8.48]
[1755071472763,21.777,4616.9,4616.8,9.4272]
[1755071473160,21.777,4616.9,4616.8,6.1382]
[1755071473369,21.777,4616.9,4616.8,9.4272]
[1755071473987,0.108,4616.9,4616.8,9.4272]
[1755071478362,0.108,4616.9,4616.8,5.191]
[1755071478595,0.108,4616.9,4616.8,8.9366]
[1755071478768,0.108,4616.9,4616.8,9.4272]
[1755071479497,14.608,4616.9,4616.8,9.4272]
[1755071479902,0.108,4616.9,4616.8,10.37002]
[1755071480200,0.108,4617.1,4616.8,10.37002]
[1755071480371,0.108,4617.1,4616.9,0.9472]
[1755071480571,0.108,4617.1,4617.0,3.289]
[1755071480796,0.108,4617.1,4617.0,4.2362]
[1755071481690,0.108,4617.1,4617.0,5.273302]
[1755071487880,0.108,4617.1,4617.0,7.972302]
[1755071488813,0.108,4617.1,4617.0,4.683302]
[1755071488979,0.108,4617.1,4617.0,7.971302]
[1755071490012,0.108,4617.1,4617.0,7.480702]
[1755071490199,0.108,4617.1,4617.0,6.4436]
[1755071490398,0.108,4617.1,4617.0,6.8996]
[1755071492694,0.108,4617.1,4617.0,6.4436]
[1755071493596,0.108,4617.1,4617.0,2.699]
[1755071493843,1.06,4617.1,4617.0,5.987]
[1755071494737,15.0891,4617.1,4617.0,5.987]
[1755071495450,15.56,4617.1,4617.0,5.987]
[1755071496532,14.608,4617.1,4617.0,5.987]
[1755071496837,15.56,4617.1,4617.0,5.987]
[1755071497436,16.11,4617.1,4617.0,5.987]
[1755071497731,1.61,4617.1,4617.0,5.987]
[1755071498233,23.279,4617.1,4617.0,5.987]
[1755071498826,22.327,4617.1,4617.0,5.987]
[1755071499024,22.8081,4617.1,4617.0,5.987]
[1755071499335,23.01017054,4617.1,4617.0,5.987]
[1755071499903,22.8081,4617.1,4617.0,5.987]
[1755071500939,22.327,4617.1,4617.0,5.987]
[1755071501306,22.52926575,4617.1,4617.0,5.987]
[1755071501707,23.48126575,4617.1,4617.0,5.987]
[1755071502539,23.01036575,4617.1,4617.0,5.987]
[1755071502712,23.48126575,4617.1,4617.0,5.987]
[1755071504942,23.94745671,4617.1,4617.0,5.987]
[1755071505240,23.94745671,4617.1,4617.0,2.699]
[1755071505434,23.94745671,4617.1,4617.0,5.987]
[1755071505637,23.94742098,4617.1,4617.0,5.987]
[1755071505816,0.55,4617.0,4616.8,5.191]
[1755071506015,25.05763397,4616.9,4616.8,5.191]
[1755071506243,25.5237892,4616.9,4616.8,8.479]
[1755071506455,40.60626668,4616.9,4616.8,8.479]
[1755071506745,40.60626562,4616.9,4616.8,8.479]
[1755071506912,40.6062655,4616.9,4616.8,8.479]
[1755071507113,40.0237892,4616.9,4616.8,8.479]
[1755071507339,0.55,4616.8,4616.5,0.001]
[1755071507544,0.55,4616.8,4616.2,0.001]
[1755071507545,16.73436822,4616.3,4616.2,0.001]
[1755071507844,24.67968096,4616.3,4616.2,8.48]
[1755071508057,40.13168096,4616.3,4616.2,8.48]
[1755071508367,0.55,4616.2,4614.4,0.4371]
[1755071508539,9.3393054,4616.2,4614.4,0.4371]
[1755071508843,16.84236822,4615.7,4614.4,0.4371]
[1755071509050,31.54451839,4615.7,4614.6,0.4371]
[1755071509210,32.02561839,4615.7,4614.9,0.4371]
[1755071509414,32.02561839,4615.7,4615.6,1.884]
[1755071510039,32.49651839,4615.7,4615.6,1.884]
[1755071512625,32.49651839,4615.7,4615.6,3.29]
[1755071513169,32.29436822,4615.7,4615.6,3.29]
[1755071513330,32.29436822,4615.7,4615.6,0.001]
[1755071513532,32.29436822,4615.7,4615.6,3.29]
[1755071513944,39.46336822,4615.7,4615.6,3.29]
[1755071514139,39.664974,4615.7,4615.6,3.29]
[1755071515154,0.55,4615.6,4614.3,0.4371]
[1755071515322,0.55,4615.6,4614.4,8.811]
[1755071515323,16.18436822,4614.7,4614.4,8.811]
[1755071515521,16.18436822,4614.7,4614.4,9.2481]
[1755071515755,0.108,4614.5,4614.4,7.892]
[1755071515933,14.608,4614.5,4614.4,11.181]
[1755071516454,14.608,4614.5,4614.4,8.3291]
[1755071516955,14.608,4614.5,4614.4,11.6181]
[1755071517321,14.608,4614.5,4614.4,12.0741]
[1755071518240,14.608,4614.5,4614.4,8.7851]
[1755071518447,14.608,4614.5,4614.4,12.0741]